[Event "Titled Tuesday Blitz August 09 Early 2022"]
[White "Azarov, Sergei"]
[Black "Parpiev, Isaak"]
[WhiteFideId "13501470"]
[BlackFideId "34281576"]
[WhiteElo "2494"]
[BlackElo "2049"]
[Result "1-0"]
[Round "02"]
[TimeControl "180+1"]
[Date "2022.08.09"]
[WhiteClock "0:01:36"]
[BlackClock "0:00:22"]

1. e4 {[%clk 0:03:00]}  e5 {[%clk 0:02:51]} 2. Nf3 {[%clk 0:03:01]}  Nc6 {[%clk 0:02:50]} 3. Bb5 {[%clk 0:03:01]}  a6 {[%clk 0:02:50]} 4. Ba4 {[%clk 0:03:01]}  Nf6 {[%clk 0:02:50]} 5. O-O {[%clk 0:03:02]}  Be7 {[%clk 0:02:50]} 6. Re1 {[%clk 0:03:02]}  b5 {[%clk 0:02:51]} 7. Bb3 {[%clk 0:03:03]}  O-O {[%clk 0:02:51]} 8. c3 {[%clk 0:03:03]}  d6 {[%clk 0:02:49]} 9. h3 {[%clk 0:03:03]}  Bb7 {[%clk 0:02:50]} 10. d4 {[%clk 0:03:03]}  h6 {[%clk 0:02:49]} 11. Nbd2 {[%clk 0:02:59]}  Re8 {[%clk 0:02:48]} 12. a3 {[%clk 0:02:48]}  Bf8 {[%clk 0:02:46]} 13. d5 {[%clk 0:02:46]}  Na7 {[%clk 0:02:41]} 14. Nh2 {[%clk 0:02:43]}  c6 {[%clk 0:02:40]} 15. dxc6 {[%clk 0:02:43]}  Nxc6 {[%clk 0:02:40]} 16. Qf3 {[%clk 0:02:40]}  Na5 {[%clk 0:02:31]} 17. Ba2 {[%clk 0:02:38]}  d5 {[%clk 0:02:31]} 18. Ng4 {[%clk 0:02:36]}  dxe4 {[%clk 0:01:22]} 19. Nxe4 {[%clk 0:02:22]}  Nd5 {[%clk 0:00:44]} 20. Bxd5 {[%clk 0:02:00]}  Bxd5 {[%clk 0:00:39]} 21. Nef6+ {[%clk 0:01:57]}  gxf6 {[%clk 0:00:38]} 22. Nxf6+ {[%clk 0:01:57]}  Kh8 {[%clk 0:00:37]} 23. Qf5 {[%clk 0:01:38]}  Kg7 {[%clk 0:00:26]} 24. Bxh6+ {[%clk 0:01:36]}  Kxh6 {[%clk 0:00:24]} 25. Qh5+ {[%clk 0:01:36]}  Kg7 {[%clk 0:00:22]} 26. Qg5+ {[%clk 0:01:37]}  Kh8 {[%clk 0:00:22]} 27. Qg8# {[%clk 0:01:36]} 1-0


[Site "https://www.chess.com"]

[Event "Titled Tuesday Blitz August 09 Early 2022"]
[White "Bekturov, Tamerlan"]
[Black "Sanchez, Robert"]
[WhiteFideId "13710184"]
[BlackFideId "2034360"]
[WhiteElo "2128"]
[BlackElo "2280"]
[Result "1-0"]
[Round "02"]
[TimeControl "180+1"]
[Date "2022.08.09"]
[WhiteClock "0:00:15"]
[BlackClock "0:00:19"]

1. e4 {[%clk 0:02:58]}  e6 {[%clk 0:02:59]} 2. d4 {[%clk 0:02:57]}  d5 {[%clk 0:02:59]} 3. Nc3 {[%clk 0:02:54]}  Nf6 {[%clk 0:02:59]} 4. e5 {[%clk 0:02:53]}  Ne4 {[%clk 0:02:59]} 5. Nxe4 {[%clk 0:02:44]}  dxe4 {[%clk 0:02:59]} 6. Be3 {[%clk 0:02:45]}  c5 {[%clk 0:02:51]} 7. dxc5 {[%clk 0:02:42]}  Qc7 {[%clk 0:02:39]} 8. Qd4 {[%clk 0:02:40]}  Nd7 {[%clk 0:02:38]} 9. Qxe4 {[%clk 0:02:31]}  Bxc5 {[%clk 0:02:30]} 10. Bxc5 {[%clk 0:02:24]}  Qxc5 {[%clk 0:02:28]} 11. Nf3 {[%clk 0:02:21]}  O-O {[%clk 0:02:20]} 12. Bd3 {[%clk 0:02:21]}  f5 {[%clk 0:02:18]} 13. exf6 {[%clk 0:02:14]}  Nxf6 {[%clk 0:02:18]} 14. Qe5 {[%clk 0:02:11]}  Qb4+ {[%clk 0:02:16]} 15. Qc3 {[%clk 0:02:09]}  Qxc3+ {[%clk 0:02:10]} 16. bxc3 {[%clk 0:02:09]}  e5 {[%clk 0:02:10]} 17. O-O-O {[%clk 0:01:58]}  Bg4 {[%clk 0:02:03]} 18. Bc4+ {[%clk 0:01:55]}  Kh8 {[%clk 0:02:04]} 19. Rde1 {[%clk 0:01:41]}  Bxf3 {[%clk 0:02:00]} 20. gxf3 {[%clk 0:01:42]}  Rac8 {[%clk 0:01:57]} 21. Bd3 {[%clk 0:01:35]}  Rxc3 {[%clk 0:01:57]} 22. Rxe5 {[%clk 0:01:35]}  Rfc8 {[%clk 0:01:57]} 23. Kd2 {[%clk 0:01:21]}  a6 {[%clk 0:01:53]} 24. Rhe1 {[%clk 0:01:18]}  b5 {[%clk 0:01:51]} 25. Re6 {[%clk 0:01:13]}  a5 {[%clk 0:01:45]} 26. R1e5 {[%clk 0:01:12]}  R3c5 {[%clk 0:01:39]} 27. f4 {[%clk 0:01:03]}  b4 {[%clk 0:01:30]} 28. Ra6 {[%clk 0:00:56]}  Nd5 {[%clk 0:01:22]} 29. Be4 {[%clk 0:00:46]}  Rd8 {[%clk 0:01:19]} 30. Rxd5 {[%clk 0:00:42]}  Rcxd5+ {[%clk 0:01:19]} 31. Bxd5 {[%clk 0:00:43]}  Rxd5+ {[%clk 0:01:19]} 32. Ke3 {[%clk 0:00:44]}  h6 {[%clk 0:01:18]} 33. h4 {[%clk 0:00:37]}  Rc5 {[%clk 0:01:16]} 34. f3 {[%clk 0:00:38]}  Rc3+ {[%clk 0:01:07]} 35. Ke4 {[%clk 0:00:38]}  Rc4+ {[%clk 0:01:04]} 36. Kf5 {[%clk 0:00:38]}  Rxc2 {[%clk 0:01:04]} 37. Kg6 {[%clk 0:00:25]}  Rc8 {[%clk 0:01:00]} 38. Rxa5 {[%clk 0:00:24]}  Rc6+ {[%clk 0:01:00]} 39. Kf5 {[%clk 0:00:22]}  Kh7 {[%clk 0:01:00]} 40. h5 {[%clk 0:00:22]}  Rc3 {[%clk 0:00:54]} 41. Kg4 {[%clk 0:00:20]}  Rc2 {[%clk 0:00:52]} 42. Ra7 {[%clk 0:00:19]}  Rg2+ {[%clk 0:00:48]} 43. Kh3 {[%clk 0:00:19]}  Rf2 {[%clk 0:00:46]} 44. Kg3 {[%clk 0:00:19]}  Rf1 {[%clk 0:00:43]} 45. f5 {[%clk 0:00:19]}  Kg8 {[%clk 0:00:43]} 46. Kf4 {[%clk 0:00:19]}  Rf2 {[%clk 0:00:40]} 47. Ra4 {[%clk 0:00:17]}  Rh2 {[%clk 0:00:39]} 48. Ke5 {[%clk 0:00:16]}  Rf2 {[%clk 0:00:31]} 49. f4 {[%clk 0:00:15]}  Kf7 {[%clk 0:00:29]} 50. Ra7+ {[%clk 0:00:14]}  Kf8 {[%clk 0:00:29]} 51. f6 {[%clk 0:00:15]}  gxf6+ {[%clk 0:00:27]} 52. Kf5 {[%clk 0:00:15]}  Ke8 {[%clk 0:00:24]} 53. Ke6 {[%clk 0:00:15]}  Kd8 {[%clk 0:00:22]} 54. f5 {[%clk 0:00:16]}  Kc8 {[%clk 0:00:20]} 55. Kxf6 {[%clk 0:00:16]}  Kb8 {[%clk 0:00:20]} 56. Ra4 {[%clk 0:00:16]}  Kc7 {[%clk 0:00:20]} 57. Rxb4 {[%clk 0:00:15]}  Rxa2 {[%clk 0:00:19]} 58. Rd4 {[%clk 0:00:15]} 1-0


[Site "https://www.chess.com"]

[Event "Titled Tuesday Blitz August 09 Early 2022"]
[White "Belov, Vladimir"]
[Black "Yedidia, Daniel"]
[WhiteFideId "4132394"]
[BlackFideId "30905907"]
[WhiteElo "2501"]
[BlackElo "2539"]
[Result "1/2-1/2"]
[Round "02"]
[TimeControl "180+1"]
[Date "2022.08.09"]
[WhiteClock "0:00:11"]
[BlackClock "0:00:10"]

1. e4 {[%clk 0:03:00]}  e5 {[%clk 0:02:58]} 2. Nf3 {[%clk 0:03:00]}  Nc6 {[%clk 0:02:59]} 3. Bb5 {[%clk 0:03:01]}  a6 {[%clk 0:02:59]} 4. Ba4 {[%clk 0:03:01]}  Nf6 {[%clk 0:02:59]} 5. O-O {[%clk 0:03:02]}  Be7 {[%clk 0:02:59]} 6. Re1 {[%clk 0:03:02]}  b5 {[%clk 0:02:59]} 7. Bb3 {[%clk 0:03:02]}  O-O {[%clk 0:03:00]} 8. d4 {[%clk 0:02:59]}  d6 {[%clk 0:02:49]} 9. c3 {[%clk 0:02:59]}  Bg4 {[%clk 0:02:48]} 10. d5 {[%clk 0:02:58]}  Na5 {[%clk 0:02:47]} 11. Bc2 {[%clk 0:02:58]}  c6 {[%clk 0:02:35]} 12. h3 {[%clk 0:02:55]}  Bh5 {[%clk 0:02:29]} 13. dxc6 {[%clk 0:02:53]}  Nxc6 {[%clk 0:02:28]} 14. Nbd2 {[%clk 0:02:53]}  Qc7 {[%clk 0:02:24]} 15. Nf1 {[%clk 0:02:52]}  b4 {[%clk 0:02:23]} 16. Ng3 {[%clk 0:02:39]}  bxc3 {[%clk 0:02:17]} 17. Nxh5 {[%clk 0:02:28]}  Nxh5 {[%clk 0:02:17]} 18. bxc3 {[%clk 0:02:28]}  Nf4 {[%clk 0:02:15]} 19. g3 {[%clk 0:02:11]}  Ne6 {[%clk 0:01:59]} 20. Be3 {[%clk 0:02:11]}  Na5 {[%clk 0:01:57]} 21. Rc1 {[%clk 0:01:46]}  Rfc8 {[%clk 0:01:37]} 22. Ba4 {[%clk 0:01:41]}  Rab8 {[%clk 0:01:31]} 23. Qe2 {[%clk 0:01:35]}  Qc4 {[%clk 0:01:30]} 24. Qxc4 {[%clk 0:01:31]}  Rxc4 {[%clk 0:01:25]} 25. Bc2 {[%clk 0:01:16]}  Rxc3 {[%clk 0:01:15]} 26. Kg2 {[%clk 0:01:09]}  Rbc8 {[%clk 0:01:10]} 27. Ba4 {[%clk 0:01:06]}  Rxc1 {[%clk 0:01:08]} 28. Rxc1 {[%clk 0:01:03]}  Rxc1 {[%clk 0:01:08]} 29. Bxc1 {[%clk 0:01:04]}  Nc5 {[%clk 0:01:09]} 30. Bc2 {[%clk 0:01:05]}  Nc6 {[%clk 0:01:04]} 31. Ba3 {[%clk 0:00:57]}  Kf8 {[%clk 0:00:42]} 32. Kf1 {[%clk 0:00:57]}  Bd8 {[%clk 0:00:39]} 33. Bxc5 {[%clk 0:00:51]}  dxc5 {[%clk 0:00:39]} 34. Ba4 {[%clk 0:00:52]}  Nb4 {[%clk 0:00:30]} 35. a3 {[%clk 0:00:43]}  Nd3 {[%clk 0:00:23]} 36. Bc2 {[%clk 0:00:43]}  c4 {[%clk 0:00:20]} 37. Bxd3 {[%clk 0:00:41]}  cxd3 {[%clk 0:00:21]} 38. Nxe5 {[%clk 0:00:42]}  Be7 {[%clk 0:00:17]} 39. a4 {[%clk 0:00:41]}  d2 {[%clk 0:00:17]} 40. Ke2 {[%clk 0:00:41]}  f6 {[%clk 0:00:15]} 41. Nc4 {[%clk 0:00:33]}  Bc5 {[%clk 0:00:15]} 42. Nxd2 {[%clk 0:00:32]}  Ke7 {[%clk 0:00:14]} 43. f4 {[%clk 0:00:26]}  Kd6 {[%clk 0:00:14]} 44. Nb3 {[%clk 0:00:24]}  Bb6 {[%clk 0:00:13]} 45. g4 {[%clk 0:00:22]}  Ke6 {[%clk 0:00:12]} 46. Kd3 {[%clk 0:00:22]}  Kd6 {[%clk 0:00:13]} 47. Nd4 {[%clk 0:00:19]}  g6 {[%clk 0:00:07]} 48. Kc4 {[%clk 0:00:18]}  Ba5 {[%clk 0:00:04]} 49. Nf3 {[%clk 0:00:17]}  Bb6 {[%clk 0:00:03]} 50. e5+ {[%clk 0:00:13]}  fxe5 {[%clk 0:00:03]} 51. Nxe5 {[%clk 0:00:14]}  Be3 {[%clk 0:00:03]} 52. Nd3 {[%clk 0:00:14]}  Bd2 {[%clk 0:00:03]} 53. Kd4 {[%clk 0:00:14]}  Ba5 {[%clk 0:00:02]} 54. Ke4 {[%clk 0:00:15]}  Ke6 {[%clk 0:00:02]} 55. h4 {[%clk 0:00:14]}  Kd6 {[%clk 0:00:02]} 56. h5 {[%clk 0:00:14]}  Bd8 {[%clk 0:00:03]} 57. h6 {[%clk 0:00:13]}  Bf6 {[%clk 0:00:04]} 58. g5 {[%clk 0:00:13]}  Bc3 {[%clk 0:00:04]} 59. f5 {[%clk 0:00:14]}  Ke7 {[%clk 0:00:04]} 60. fxg6 {[%clk 0:00:13]}  hxg6 {[%clk 0:00:05]} 61. Nf4 {[%clk 0:00:13]}  Kf7 {[%clk 0:00:04]} 62. Nd5 {[%clk 0:00:12]}  Bd2 {[%clk 0:00:05]} 63. Nf4 {[%clk 0:00:07]}  Bc3 {[%clk 0:00:05]} 64. Kf3 {[%clk 0:00:06]}  Bd2 {[%clk 0:00:06]} 65. Kg4 {[%clk 0:00:06]}  a5 {[%clk 0:00:06]} 66. h7 {[%clk 0:00:06]}  Kg7 {[%clk 0:00:06]} 67. Nxg6 {[%clk 0:00:06]}  Bc3 {[%clk 0:00:04]} 68. Nf4 {[%clk 0:00:04]}  Kxh7 {[%clk 0:00:04]} 69. Kf5 {[%clk 0:00:05]}  Kg7 {[%clk 0:00:04]} 70. Nd5 {[%clk 0:00:05]}  Be1 {[%clk 0:00:04]} 71. Nf4 {[%clk 0:00:06]}  Bd2 {[%clk 0:00:05]} 72. g6 {[%clk 0:00:06]}  Bxf4 {[%clk 0:00:05]} 73. Kxf4 {[%clk 0:00:06]}  Kxg6 {[%clk 0:00:06]} 74. Ke5 {[%clk 0:00:07]}  Kf7 {[%clk 0:00:06]} 75. Kd5 {[%clk 0:00:08]}  Ke8 {[%clk 0:00:07]} 76. Kc5 {[%clk 0:00:09]}  Kd8 {[%clk 0:00:08]} 77. Kb5 {[%clk 0:00:10]}  Kc8 {[%clk 0:00:08]} 78. Kxa5 {[%clk 0:00:11]}  Kb8 {[%clk 0:00:09]} 79. Kb6 {[%clk 0:00:11]}  Ka8 {[%clk 0:00:10]} 80. a5 {[%clk 0:00:11]} 1/2-1/2


[Site "https://www.chess.com"]

[Event "Titled Tuesday Blitz August 09 Early 2022"]
[White "Broca Jimenez, Fernando"]
[Black "Kashefi, Amir Hosein"]
[WhiteFideId "5104742"]
[BlackFideId "12557935"]
[WhiteElo "2062"]
[BlackElo "1962"]
[Result "0-1"]
[Round "02"]
[TimeControl "180+1"]
[Date "2022.08.09"]
[WhiteClock "0:02:07"]
[BlackClock "0:02:33"]

1. e4 {[%clk 0:02:58]}  c6 {[%clk 0:02:59]} 2. d4 {[%clk 0:02:57]}  d5 {[%clk 0:03:00]} 3. Nc3 {[%clk 0:02:57]}  dxe4 {[%clk 0:03:00]} 4. Nxe4 {[%clk 0:02:58]}  Nf6 {[%clk 0:03:01]} 5. Nxf6+ {[%clk 0:02:57]}  gxf6 {[%clk 0:03:02]} 6. Bf4 {[%clk 0:02:57]}  Bf5 {[%clk 0:03:02]} 7. Nf3 {[%clk 0:02:55]}  Nd7 {[%clk 0:03:03]} 8. Bd3 {[%clk 0:02:54]}  Rg8 {[%clk 0:03:03]} 9. Qd2 {[%clk 0:02:51]}  Bxd3 {[%clk 0:03:03]} 10. Qxd3 {[%clk 0:02:50]}  Qa5+ {[%clk 0:02:59]} 11. c3 {[%clk 0:02:46]}  Rxg2 {[%clk 0:02:56]} 12. Bg3 {[%clk 0:02:41]}  Qh5 {[%clk 0:02:56]} 13. Qf1 {[%clk 0:02:31]}  Qxf3 {[%clk 0:02:55]} 14. Rd1 {[%clk 0:02:21]}  O-O-O {[%clk 0:02:54]} 15. Rd3 {[%clk 0:02:21]}  Qe4+ {[%clk 0:02:48]} 16. Re3 {[%clk 0:02:12]}  Qb1+ {[%clk 0:02:48]} 17. Ke2 {[%clk 0:02:13]}  Qxb2+ {[%clk 0:02:42]} 18. Kf3 {[%clk 0:02:13]}  Rxg3+ {[%clk 0:02:40]} 19. hxg3 {[%clk 0:02:14]}  Qxa2 {[%clk 0:02:37]} 20. Rxh7 {[%clk 0:02:14]}  Qd5+ {[%clk 0:02:36]} 21. Ke2 {[%clk 0:02:11]}  Qb5+ {[%clk 0:02:36]} 22. Rd3 {[%clk 0:02:07]}  Ne5 {[%clk 0:02:33]} 0-1


[Site "https://www.chess.com"]

[Event "Titled Tuesday Blitz August 09 Early 2022"]
[White "Bychkov, Vladimir"]
[Black "Garcia, Erick"]
[WhiteFideId "24151513"]
[BlackFideId "2058880"]
[WhiteElo "2197"]
[BlackElo "2202"]
[Result "1-0"]
[Round "02"]
[TimeControl "180+1"]
[Date "2022.08.09"]
[WhiteClock "0:00:49"]
[BlackClock "0:01:03"]

1. c4 {[%clk 0:03:00]}  Nf6 {[%clk 0:02:58]} 2. Nc3 {[%clk 0:03:00]}  e5 {[%clk 0:02:58]} 3. g3 {[%clk 0:03:00]}  Bb4 {[%clk 0:02:58]} 4. Qc2 {[%clk 0:03:00]}  O-O {[%clk 0:02:57]} 5. Bg2 {[%clk 0:03:00]}  c6 {[%clk 0:02:54]} 6. a3 {[%clk 0:02:58]}  Bxc3 {[%clk 0:02:53]} 7. dxc3 {[%clk 0:02:58]}  d5 {[%clk 0:02:50]} 8. cxd5 {[%clk 0:02:57]}  cxd5 {[%clk 0:02:50]} 9. Nf3 {[%clk 0:02:58]}  Nc6 {[%clk 0:02:48]} 10. Bg5 {[%clk 0:02:58]}  h6 {[%clk 0:02:46]} 11. Bxf6 {[%clk 0:02:55]}  Qxf6 {[%clk 0:02:46]} 12. Rd1 {[%clk 0:02:55]}  Be6 {[%clk 0:02:46]} 13. O-O {[%clk 0:02:54]}  Rfd8 {[%clk 0:02:46]} 14. b4 {[%clk 0:02:48]}  Rac8 {[%clk 0:02:45]} 15. Qb2 {[%clk 0:02:46]}  e4 {[%clk 0:02:43]} 16. Nd4 {[%clk 0:02:45]}  Nxd4 {[%clk 0:02:42]} 17. Rxd4 {[%clk 0:02:44]}  Rc7 {[%clk 0:02:39]} 18. Rc1 {[%clk 0:02:12]}  Rdc8 {[%clk 0:02:38]} 19. Qd2 {[%clk 0:02:11]}  Qe5 {[%clk 0:02:34]} 20. f3 {[%clk 0:01:59]}  f5 {[%clk 0:02:30]} 21. f4 {[%clk 0:01:55]}  Qf6 {[%clk 0:02:26]} 22. e3 {[%clk 0:01:55]}  Kh7 {[%clk 0:02:24]} 23. Kh1 {[%clk 0:01:53]}  Qe7 {[%clk 0:02:17]} 24. Bf1 {[%clk 0:01:50]}  a5 {[%clk 0:02:16]} 25. Be2 {[%clk 0:01:42]}  Qe8 {[%clk 0:02:11]} 26. Qb2 {[%clk 0:01:30]}  Qc6 {[%clk 0:01:55]} 27. bxa5 {[%clk 0:01:26]}  Ra8 {[%clk 0:01:52]} 28. Qb4 {[%clk 0:01:22]}  Qc5 {[%clk 0:01:51]} 29. Bb5 {[%clk 0:01:18]}  Bf7 {[%clk 0:01:35]} 30. Kg2 {[%clk 0:01:18]}  Qa7 {[%clk 0:01:30]} 31. a4 {[%clk 0:01:00]}  Qxa5 {[%clk 0:01:29]} 32. Qxa5 {[%clk 0:00:58]}  Rxa5 {[%clk 0:01:28]} 33. Kf2 {[%clk 0:00:58]}  Ra8 {[%clk 0:01:27]} 34. Ke1 {[%clk 0:00:58]}  g5 {[%clk 0:01:27]} 35. Kd2 {[%clk 0:00:58]}  Kg6 {[%clk 0:01:27]} 36. Rb1 {[%clk 0:00:57]}  Kf6 {[%clk 0:01:26]} 37. Be2 {[%clk 0:00:55]}  Be6 {[%clk 0:01:20]} 38. Rb6 {[%clk 0:00:55]}  Rb8 {[%clk 0:01:13]} 39. Rxd5 {[%clk 0:00:52]}  Rc6 {[%clk 0:01:11]} 40. Rdb5 {[%clk 0:00:50]}  Rd8+ {[%clk 0:01:08]} 41. Kc2 {[%clk 0:00:50]}  Rcd6 {[%clk 0:01:02]} 42. Rxd6 {[%clk 0:00:50]}  Rxd6 {[%clk 0:01:03]} 43. Rxb7 {[%clk 0:00:49]}  Ra6 {[%clk 0:01:03]} 44. Bxa6 {[%clk 0:00:49]} 1-0


[Site "https://www.chess.com"]

[Event "Titled Tuesday Blitz August 09 Early 2022"]
[White "Calugar, Arthur"]
[Black "Zaloznyy, Mike"]
[WhiteFideId "2606933"]
[BlackFideId "2023075"]
[WhiteElo "2312"]
[BlackElo "2003"]
[Result "1-0"]
[Round "02"]
[TimeControl "180+1"]
[Date "2022.08.09"]
[WhiteClock "0:00:17"]
[BlackClock "0:00:01"]

1. e4 {[%clk 0:03:00]}  c6 {[%clk 0:02:59]} 2. d4 {[%clk 0:03:00]}  d5 {[%clk 0:02:59]} 3. e5 {[%clk 0:03:01]}  c5 {[%clk 0:02:59]} 4. dxc5 {[%clk 0:03:01]}  e6 {[%clk 0:02:59]} 5. a3 {[%clk 0:03:01]}  Bxc5 {[%clk 0:03:00]} 6. b4 {[%clk 0:03:02]}  Be7 {[%clk 0:03:00]} 7. Bb2 {[%clk 0:03:02]}  f6 {[%clk 0:02:59]} 8. Nf3 {[%clk 0:03:03]}  a5 {[%clk 0:02:58]} 9. b5 {[%clk 0:03:03]}  Nd7 {[%clk 0:02:59]} 10. Nbd2 {[%clk 0:03:03]}  Nh6 {[%clk 0:02:58]} 11. Bd3 {[%clk 0:03:03]}  Nf7 {[%clk 0:02:58]} 12. exf6 {[%clk 0:02:57]}  Bxf6 {[%clk 0:02:57]} 13. Bxf6 {[%clk 0:02:24]}  Qxf6 {[%clk 0:02:57]} 14. O-O {[%clk 0:02:24]}  O-O {[%clk 0:02:48]} 15. c4 {[%clk 0:02:20]}  Nc5 {[%clk 0:02:48]} 16. Bc2 {[%clk 0:02:16]}  a4 {[%clk 0:02:48]} 17. Qe2 {[%clk 0:02:08]}  b6 {[%clk 0:02:39]} 18. Rae1 {[%clk 0:01:43]}  Bb7 {[%clk 0:02:20]} 19. Ne5 {[%clk 0:01:42]}  Rad8 {[%clk 0:01:55]} 20. f4 {[%clk 0:01:30]}  Nd6 {[%clk 0:01:25]} 21. Qg4 {[%clk 0:01:13]}  Nxc4 {[%clk 0:00:57]} 22. Ndxc4 {[%clk 0:00:44]}  dxc4 {[%clk 0:00:58]} 23. Nxc4 {[%clk 0:00:42]}  Nd3 {[%clk 0:00:42]} 24. Rxe6 {[%clk 0:00:32]}  Qd4+ {[%clk 0:00:39]} 25. Ne3 {[%clk 0:00:32]}  Rxf4 {[%clk 0:00:25]} 26. Rxf4 {[%clk 0:00:23]}  Nxf4 {[%clk 0:00:21]} 27. Re7 {[%clk 0:00:22]}  Qa1+ {[%clk 0:00:10]} 28. Nd1 {[%clk 0:00:16]}  Qd4+ {[%clk 0:00:05]} 29. Ne3 {[%clk 0:00:16]}  Qa1+ {[%clk 0:00:05]} 30. Bd1 {[%clk 0:00:17]}  Nxg2 {[%clk 0:00:02]} 31. Qe6+ {[%clk 0:00:15]}  Kh8 {[%clk 0:00:01]} 32. Re8+ {[%clk 0:00:16]}  Rxe8 {[%clk 0:00:01]} 33. Qxe8# {[%clk 0:00:17]} 1-0


[Site "https://www.chess.com"]

[Event "Titled Tuesday Blitz August 09 Early 2022"]
[White "Chyzy, Jakub"]
[Black "Siva Mahadevan"]
[WhiteFideId "21806209"]
[BlackFideId "25043153"]
[WhiteElo "2023"]
[BlackElo "2203"]
[Result "0-1"]
[Round "02"]
[TimeControl "180+1"]
[Date "2022.08.09"]
[WhiteClock "0:00:06"]
[BlackClock "0:01:47"]

1. b3 {[%clk 0:03:00]}  e5 {[%clk 0:02:58]} 2. Bb2 {[%clk 0:03:01]}  Nc6 {[%clk 0:02:59]} 3. e3 {[%clk 0:03:02]}  d5 {[%clk 0:02:59]} 4. Bb5 {[%clk 0:03:01]}  Bd6 {[%clk 0:03:00]} 5. Nf3 {[%clk 0:03:01]}  Qe7 {[%clk 0:02:58]} 6. d4 {[%clk 0:02:52]}  e4 {[%clk 0:02:58]} 7. Ne5 {[%clk 0:02:53]}  a6 {[%clk 0:02:59]} 8. Bxc6+ {[%clk 0:02:26]}  bxc6 {[%clk 0:02:58]} 9. Nxc6 {[%clk 0:02:27]}  Qg5 {[%clk 0:02:57]} 10. g3 {[%clk 0:02:20]}  Bg4 {[%clk 0:02:57]} 11. Qd2 {[%clk 0:02:18]}  Bf3 {[%clk 0:02:55]} 12. Rf1 {[%clk 0:02:15]}  Nf6 {[%clk 0:02:50]} 13. c4 {[%clk 0:02:12]}  dxc4 {[%clk 0:02:46]} 14. bxc4 {[%clk 0:02:13]}  a5 {[%clk 0:02:28]} 15. c5 {[%clk 0:02:10]}  Ra6 {[%clk 0:02:18]} 16. Nxa5 {[%clk 0:00:57]}  Be7 {[%clk 0:02:18]} 17. Nc4 {[%clk 0:00:56]}  O-O {[%clk 0:02:16]} 18. Ne5 {[%clk 0:00:56]}  Bh5 {[%clk 0:02:14]} 19. Nc3 {[%clk 0:00:51]}  Rb8 {[%clk 0:02:14]} 20. f4 {[%clk 0:00:38]}  exf3 {[%clk 0:02:12]} 21. Nxf3 {[%clk 0:00:38]}  Qf5 {[%clk 0:02:03]} 22. Ne5 {[%clk 0:00:33]}  Qe6 {[%clk 0:02:03]} 23. Rf4 {[%clk 0:00:16]}  Bxc5 {[%clk 0:01:55]} 24. dxc5 {[%clk 0:00:07]}  Qxe5 {[%clk 0:01:54]} 25. Nd1 {[%clk 0:00:05]}  Qe7 {[%clk 0:01:54]} 26. Bxf6 {[%clk 0:00:04]}  Rxf6 {[%clk 0:01:54]} 27. Rxf6 {[%clk 0:00:04]}  Qxf6 {[%clk 0:01:55]} 28. Qd4 {[%clk 0:00:04]}  Qf3 {[%clk 0:01:56]} 29. Qd2 {[%clk 0:00:04]}  h6 {[%clk 0:01:51]} 30. Qf2 {[%clk 0:00:04]}  Qh1+ {[%clk 0:01:52]} 31. Kd2 {[%clk 0:00:03]}  Rd8+ {[%clk 0:01:52]} 32. Kc3 {[%clk 0:00:03]}  Rxd1 {[%clk 0:01:50]} 33. Rxd1 {[%clk 0:00:04]}  Qxd1 {[%clk 0:01:51]} 34. Kb4 {[%clk 0:00:03]}  Qb1+ {[%clk 0:01:50]} 35. Ka3 {[%clk 0:00:04]}  Bg6 {[%clk 0:01:48]} 36. Qd2 {[%clk 0:00:03]}  Kh7 {[%clk 0:01:47]} 37. Qd4 {[%clk 0:00:03]}  c6 {[%clk 0:01:47]} 38. Qd6 {[%clk 0:00:03]}  Be4 {[%clk 0:01:47]} 39. Qd4 {[%clk 0:00:03]}  f5 {[%clk 0:01:47]} 40. Qd6 {[%clk 0:00:03]}  Qc1+ {[%clk 0:01:47]} 41. Kb4 {[%clk 0:00:03]}  Qxe3 {[%clk 0:01:47]} 42. Ka5 {[%clk 0:00:03]}  Qa3+ {[%clk 0:01:47]} 43. Kb6 {[%clk 0:00:03]}  Qxa2 {[%clk 0:01:48]} 44. Kc7 {[%clk 0:00:04]}  Qxh2 {[%clk 0:01:47]} 45. Kd8 {[%clk 0:00:04]}  Qh5 {[%clk 0:01:47]} 46. Ke7 {[%clk 0:00:04]}  Qg5+ {[%clk 0:01:47]} 47. Kf8 {[%clk 0:00:04]}  Qf6+ {[%clk 0:01:47]} 48. Qxf6 {[%clk 0:00:04]}  gxf6 {[%clk 0:01:48]} 49. Kf7 {[%clk 0:00:05]}  h5 {[%clk 0:01:46]} 50. Kxf6 {[%clk 0:00:05]}  Kh6 {[%clk 0:01:47]} 51. Ke5 {[%clk 0:00:05]}  Kg5 {[%clk 0:01:47]} 52. Kd6 {[%clk 0:00:06]}  f4 {[%clk 0:01:47]} 0-1


[Site "https://www.chess.com"]

[Event "Titled Tuesday Blitz August 09 Early 2022"]
[White "Costachi, Mihnea"]
[Black "Melikhov, Evgeny V."]
[WhiteFideId "1217518"]
[BlackFideId "4122046"]
[WhiteElo "2437"]
[BlackElo "1963"]
[Result "1-0"]
[Round "02"]
[TimeControl "180+1"]
[Date "2022.08.09"]
[WhiteClock "0:00:44"]
[BlackClock "0:00:01"]

1. e4 {[%clk 0:03:00]}  e5 {[%clk 0:02:59]} 2. Nf3 {[%clk 0:02:57]}  Nc6 {[%clk 0:02:59]} 3. Bc4 {[%clk 0:02:46]}  Nf6 {[%clk 0:02:59]} 4. O-O {[%clk 0:02:38]}  Nxe4 {[%clk 0:02:57]} 5. Re1 {[%clk 0:02:38]}  d5 {[%clk 0:02:37]} 6. Bb5 {[%clk 0:02:27]}  Be7 {[%clk 0:02:01]} 7. Nxe5 {[%clk 0:02:24]}  Bd7 {[%clk 0:02:00]} 8. Nxd7 {[%clk 0:02:21]}  Qxd7 {[%clk 0:02:00]} 9. d3 {[%clk 0:02:22]}  Nf6 {[%clk 0:01:52]} 10. Qe2 {[%clk 0:02:11]}  a6 {[%clk 0:01:16]} 11. Bxc6 {[%clk 0:02:09]}  bxc6 {[%clk 0:01:16]} 12. b3 {[%clk 0:01:38]}  c5 {[%clk 0:00:16]} 13. Kf1 {[%clk 0:01:37]}  Ng8 {[%clk 0:00:12]} 14. Ba3 {[%clk 0:01:33]}  Qd6 {[%clk 0:00:11]} 15. d4 {[%clk 0:01:33]}  Qxh2 {[%clk 0:00:09]} 16. Qg4 {[%clk 0:01:26]}  Kf8 {[%clk 0:00:06]} 17. Bxc5 {[%clk 0:01:24]}  Bxc5 {[%clk 0:00:05]} 18. dxc5 {[%clk 0:01:25]}  Nf6 {[%clk 0:00:05]} 19. Qh3 {[%clk 0:01:20]}  Qxh3 {[%clk 0:00:05]} 20. gxh3 {[%clk 0:01:20]}  h5 {[%clk 0:00:06]} 21. Nc3 {[%clk 0:01:10]}  g5 {[%clk 0:00:05]} 22. Re5 {[%clk 0:01:09]}  g4 {[%clk 0:00:06]} 23. Kg2 {[%clk 0:01:00]}  Kg7 {[%clk 0:00:04]} 24. Nxd5 {[%clk 0:00:58]}  Nxd5 {[%clk 0:00:04]} 25. Rxd5 {[%clk 0:00:58]}  Rae8 {[%clk 0:00:03]} 26. hxg4 {[%clk 0:00:57]}  hxg4 {[%clk 0:00:03]} 27. Rad1 {[%clk 0:00:56]}  Re2 {[%clk 0:00:03]} 28. R1d2 {[%clk 0:00:56]}  Re1 {[%clk 0:00:03]} 29. Rg5+ {[%clk 0:00:54]}  Kf6 {[%clk 0:00:02]} 30. Rxg4 {[%clk 0:00:55]}  Rhh1 {[%clk 0:00:03]} 31. Kf3 {[%clk 0:00:53]}  Kf5 {[%clk 0:00:03]} 32. Rf4+ {[%clk 0:00:52]}  Ke6 {[%clk 0:00:04]} 33. Re4+ {[%clk 0:00:52]}  Rxe4 {[%clk 0:00:03]} 34. Kxe4 {[%clk 0:00:53]}  f5+ {[%clk 0:00:03]} 35. Ke3 {[%clk 0:00:51]}  Ke5 {[%clk 0:00:03]} 36. Rd7 {[%clk 0:00:48]}  Rh3+ {[%clk 0:00:03]} 37. Ke2 {[%clk 0:00:47]}  f4 {[%clk 0:00:03]} 38. Rxc7 {[%clk 0:00:46]}  f3+ {[%clk 0:00:03]} 39. Ke3 {[%clk 0:00:46]}  Kd5 {[%clk 0:00:04]} 40. c4+ {[%clk 0:00:44]}  Ke5 {[%clk 0:00:03]} 41. Re7+ {[%clk 0:00:45]}  Kf6 {[%clk 0:00:03]} 42. Re4 {[%clk 0:00:45]}  Rh1 {[%clk 0:00:03]} 43. c6 {[%clk 0:00:44]}  Ra1 {[%clk 0:00:01]} 44. c7 {[%clk 0:00:44]} 1-0


[Site "https://www.chess.com"]